[Event "Tsaghkadzor Open 2024"]
[Site "Tsaghkadzor"]
[Date "2024.10.02"]
[Round "3.7"]
[White "Lobanov, Sergei"]
[Black "Hovakimyan, Vache"]
[Result "1-0"]
[ECO "E49"]
[WhiteElo "2506"]
[BlackElo "2247"]
[Annotator "TA"]
[PlyCount "117"]
[EventDate "2024.09.13"]
[EventType "swiss"]
[EventCountry "ARM"]
[SourceTitle "playchess.com"]
[Source "ChessBase"]
[SourceQuality "1"]
[TimeControl "40/5400+30:1800+30"]

{[%evp 18,117,-20,-11,-14,-18,-9,-10,-7,-7,-11,0,-3,-3,0,0,0,0,0,0,0,0,0,0,0,-14,0,0,0,-5,8,4,4,0,1,1,58,48,49,45,45,38,50,58,48,45,58,58,75,67,73,61,61,61,79,61,76,62,75,68,75,0,68,60,68,58,68,34,104,104,104,104,104,104,104,104,124,124,124,87,110,0,124,124,124,124,124,124,124,124,124,124,29987,29988,29988,29989,29989,54,29990,29991,29997,29998]} 1. d4 {[%emt 0:00:02]} Nf6 {[%emt 0:01:44]} 2. c4 {[%emt 0:00:03]} e6 {[%emt 0:00:23]} 3. Nc3 {[%emt 0:00:06]} Bb4 {[%emt 0:01:37]} 4. e3 {[%emt 0:00:08]} O-O {[%emt 0:00:36]} 5. Bd3 {[%emt 0:00:06]} d5 {[%emt 0:00:56]} 6. a3 {[%emt 0:00:11]} Bxc3+ {[%emt 0:00:37]} 7. bxc3 {[%emt 0:00:02]} dxc4 {[%emt 0:02:11]} 8. Bxc4 {[%emt 0:00:05]} c5 {[%emt 0:00:13]} 9. Ne2 {[%emt 0:00:10]} Qc7 {[%emt 0:00:29]} 10. Ba2 {[%emt 0:00:10]} b6 {[%emt 0:14:26]} 11. O-O $1 {[%emt 0:00:08]} Ba6 {[%emt 0:01:40]} 12. Bb2 {[%emt 0:00:08]} Nc6 {[%emt 0:01:54] The position is equal.} 13. c4 {[%emt 0:04:44]} cxd4 {[%emt 0:05:32]} 14. exd4 {[%emt 0:00:16]} Na5 {[%emt 0:09:46]} 15. d5 {[%emt 0:00:20]} Bxc4 {[%emt 0:05:37]} 16. Bxf6 {[%emt 0:04:30]} gxf6 {[%emt 0:01:29]} 17. dxe6 {[%emt 0:03:48]} Bxa2 {[%emt 0:05:23]} 18. Rxa2 {[%emt 0:00:06][%cal Ba1a2,Ba2d2,Bd2c2,Bc2c4][%mdl 32] Threatens to win with Rd2.} fxe6 {[%emt 0:00:25]} 19. Nd4 {[%emt 0:04:26]} Rae8 {[%emt 0:14:25]} 20. Rd2 {[%emt 0:03:15][%cal Od4e6] Black must now prevent Nxe6!} Kh8 {[%emt 0:10:14]} 21. Qf3 {[%emt 0:12:04]} Qc5 {[%emt 0:04:29]} 22. Rfd1 {[%emt 0:04:18]} Nc4 {[%emt 0:03:37][%csl LRa3,LRd2]} 23. Rc2 {[%emt 0:00:10]} b5 {[%emt 0:03:49] [#]} 24. a4 $1 {[%emt 0:00:13]} a6 {[%emt 0:00:48]} 25. axb5 {[%emt 0:00:30]} axb5 {[%emt 0:00:18]} 26. Qe2 {[%emt 0:00:13][%cal Od4b5]} Qb6 {[%emt 0:02:09] [#]} (26... Rg8 $11) 27. Nxb5 $1 $14 {[%emt 0:01:59]} Qxb5 {[%emt 0:00:33]} 28. Rxc4 {[%emt 0:00:01]} ({Don't play} 28. Qxc4 Qf5 $16) 28... Re7 {[%emt 0:01:22]} 29. Qc2 {[%emt 0:00:55]} Qg5 {[%emt 0:01:53]} 30. g3 {[%emt 0:00:20]} Qg6 {[%emt 0:01:14]} 31. Qc3 {[%emt 0:00:50]} Rfe8 {[%emt 0:01:11]} 32. Rd6 {[%emt 0:03:05]} Rf8 {[%emt 0:01:13] Black is weak on the dark squares} 33. Kg2 {[%emt 0:01:22]} Rfe8 {[%emt 0:01:01]} 34. Rf4 {[%emt 0:02:46]} Rf8 {[%emt 0:00:43]} 35. h3 {[%emt 0:00:06]} Qg5 {[%emt 0:01:00]} 36. Rc6 {[%emt 0:03:23]} Qg6 {[%emt 0:02:27]} 37. Kh2 {[%emt 0:04:46]} Qf7 {[%emt 0:00:28]} 38. Rb4 {[%emt 0:06:48]} Rfe8 {[%emt 0:00:29]} 39. Rf4 {[%emt 0:02:37] White is much more active.} Rf8 {[%emt 0:00:09]} 40. Rc5 {[%emt 0:00:00]} Qg7 {[%emt 0:00:00]} 41. Rc8 {[%emt 0:19:21]} e5 {[%emt 0:20:57]} 42. Rf5 {[%emt 0:02:23]} Ref7 {[%emt 0:00:57]} (42... Rxc8 $14 43. Qxc8+ Qg8 44. Qxg8+ Kxg8) 43. Rc6 $16 {[%emt 0:01:22]} Qg6 {[%emt 0:01:41]} 44. Qf3 {[%emt 0:00:15]} Qg7 {[%emt 0:00:45]} 45. Ra6 {[%emt 0:02:53]} Qh6 {[%emt 0:01:17]} 46. Kg2 {[%emt 0:04:27]} Kg7 {[%emt 0:03:25]} 47. h4 {[%emt 0:02:56][%cal Bh3h4,Bh4h5][%mdl 32]} Qd2 {[%emt 0:02:18]} 48. Ra4 {[%emt 0:00:35] Prevents Qb4} Kh8 {[%emt 0:00:51]} 49. Ra6 {[%emt 0:01:16]} Kg7 {[%emt 0:01:00]} 50. h5 {[%emt 0:00:09]} Qc1 {[%emt 0:00:59]} 51. Rd6 {[%emt 0:00:42]} Qc4 {[%emt 0:02:48]} 52. Rc6 {[%emt 0:02:05]} Qb4 {[%emt 0:00:30] [#]} 53. h6+ $1 {[%emt 0:21:32][%mdl 512]} Kxh6 {[%emt 0:00:14] [#]} 54. Rb6 $1 $36 {[%emt 0:00:09][%mdl 2048] White is on the roll.} (54. Rxe5 Kg7 55. Re4 Qd2) (54. Rfxf6+ $6 Rxf6 55. Rxf6+ Kg7 56. Rxf8 Qxf8 $11) 54... Qd4 $2 {[%emt 0:00:46][%mdl 8192]} ({Stronger than} 54... Qxb6 55. Qg4 Qc6+ 56. Kh2) (54... Qc4 $16) 55. Rbxf6+ {[%emt 0:00:32]} Rxf6 {[%emt 0:00:06]} 56. Rxf6+ {[%emt 0:00:03]} Rxf6 {[%emt 0:00:07]} 57. Qxf6+ {[%emt 0:00:04]} Kh5 {[%emt 0:00:06] [#]} 58. f3 $1 {[%emt 0:00:13] Wards off Qe4} Qd2+ {[%emt 0:01:36]} 59. Kh3 {[%emt 0:00:06] Weighted Error Value: White=0.07 (flawless) /Black=0.16 (very precise) .  Loses game:     	---       	Black=1      Mistake:       	---       	Black=2      Inaccurate:     	White=1     	---        OK:         	White=20    	Black=17     Best:        	White=2     	Black=3      Strong:       	White=1     	---        Brilliant:      	White=1     	---} 1-0

[Event "Tsaghkadzor Open 2024"]
[Site "Tsaghkadzor"]
[Date "2024.10.02"]
[Round "3.8"]
[White "Gharibyan, Mamikon"]
[Black "Yeritsyan, Hayk"]
[Result "0-1"]
[ECO "B30"]
[WhiteElo "2472"]
[BlackElo "2229"]
[Annotator "RC"]
[PlyCount "160"]
[EventDate "2024.09.13"]
[EventType "swiss"]
[EventCountry "ARM"]
[SourceTitle "playchess.com"]
[Source "ChessBase"]
[SourceQuality "1"]
[TimeControl "40/5400+30:1800+30"]

1. e4 {[%emt 0:00:49]} c5 {[%emt 0:00:46]} 2. Nf3 {[%emt 0:00:10]} Nc6 {[%emt 0:00:56]} 3. Bb5 {[%emt 0:00:26]} Nf6 {[%emt 0:01:37]} 4. Bxc6 {[%emt 0:00:32]} dxc6 {[%emt 0:00:28]} 5. d3 {[%emt 0:00:45]} Qc7 {[%emt 0:00:55]} 6. a4 {[%emt 0:03:55]} e5 {[%emt 0:01:49]} 7. Na3 {[%emt 0:02:35]} Be7 {[%emt 0:04:40]} 8. b3 {[%emt 0:03:13]} Be6 {[%emt 0:07:37]} 9. Nc4 {[%emt 0:08:46]} Nd7 {[%emt 0:00:10]} 10. Bb2 {[%emt 0:03:01]} f6 {[%emt 0:00:58]} 11. Ne3 {[%emt 0:08:07]} Nf8 {[%emt 0:04:11]} 12. Nh4 {[%emt 0:07:19]} g6 {[%emt 0:02:14]} 13. O-O {[%emt 0:05:56]} Bf7 {[%emt 0:05:31]} 14. f4 {[%emt 0:13:45]} exf4 {[%emt 0:03:45]} 15. Ng4 {[%emt 0:00:29]} Nd7 {[%emt 0:02:29]} 16. e5 {[%emt 0:02:18]} fxe5 {[%emt 0:10:11]} 17. Nf3 {[%emt 0:01:27]} O-O-O {[%emt 0:02:38]} 18. Nfxe5 {[%emt 0:02:16]} Be6 {[%emt 0:02:21]} 19. Nxd7 {[%emt 0:01:48]} Qxd7 {[%emt 0:00:14]} 20. Rxf4 {[%emt 0:06:17]} Bd6 {[%emt 0:04:43]} 21. Ne5 {[%emt 0:04:16]} Qc7 {[%emt 0:00:41]} 22. Re4 {[%emt 0:04:17]} Rhf8 {[%emt 0:02:28]} 23. Qe1 {[%emt 0:04:39]} Rf5 {[%emt 0:07:32]} 24. Qg3 {[%emt 0:08:16]} Rdf8 {[%emt 0:04:49]} 25. Rae1 {[%emt 0:01:03]} Bd5 {[%emt 0:01:30]} 26. R4e3 {[%emt 0:02:42]} Qd8 {[%emt 0:08:05]} 27. h4 {[%emt 0:02:32]} Qf6 {[%emt 0:04:43]} 28. c4 {[%emt 0:01:27]} Rf1+ {[%emt 0:04:16]} 29. Rxf1 {[%emt 0:01:19]} Qxf1+ {[%emt 0:00:03]} 30. Kh2 {[%emt 0:00:05]} Bxg2 {[%emt 0:00:58]} 31. Re1 {[%emt 0:00:05]} Qf2 {[%emt 0:00:07]} 32. Qxf2 {[%emt 0:00:43]} Rxf2 {[%emt 0:00:04]} 33. Bc3 {[%emt 0:00:31]} Rc2 {[%emt 0:00:28]} 34. Ba1 {[%emt 0:00:06]} Be4+ {[%emt 0:00:25]} 35. Kg3 {[%emt 0:00:54]} Bxd3 {[%emt 0:00:33]} 36. Rd1 {[%emt 0:00:08]} Re2 {[%emt 0:00:49]} 37. Kf3 {[%emt 0:01:31]} Bxe5 {[%emt 0:00:11]} 38. Rxd3 {[%emt 0:00:05]} Re1 {[%emt 0:00:04]} 39. Bxe5 {[%emt 0:00:32]} Rxe5 {[%emt 0:00:03]} 40. a5 {[%emt 0:00:00]} Re1 {[%emt 0:00:00]} 41. Kf4 {[%emt 0:16:21]} Rg1 {[%emt 0:19:43]} 42. Ke5 {[%emt 0:02:39]} Kc7 {[%emt 0:01:32]} 43. Rf3 {[%emt 0:03:11]} Re1+ {[%emt 0:00:36]} 44. Kf6 {[%emt 0:00:09]} Re4 {[%emt 0:00:43]} 45. Kg7 {[%emt 0:03:24]} Rxh4 {[%emt 0:00:42]} 46. Rf7+ {[%emt 0:00:04]} Kd6 {[%emt 0:00:30]} 47. Rxb7 {[%emt 0:00:05]} g5 {[%emt 0:00:42]} 48. Kf6 {[%emt 0:03:11]} h6 {[%emt 0:03:18]} 49. Rxa7 {[%emt 0:00:08]} Rh1 {[%emt 0:01:07]} 50. a6 {[%emt 0:01:28]} g4 {[%emt 0:01:24]} 51. Ra8 {[%emt 0:03:34]} Kc7 {[%emt 0:03:55]} 52. a7 {[%emt 0:01:11]} Kb7 {[%emt 0:00:03]} 53. Rg8 {[%emt 0:00:22]} Kxa7 {[%emt 0:00:03]} 54. Rxg4 {[%emt 0:00:04]} Kb6 {[%emt 0:00:25]} 55. Rg8 {[%emt 0:00:37]} h5 {[%emt 0:00:21]} 56. Rb8+ {[%emt 0:00:33]} Kc7 {[%emt 0:00:27]} 57. Rh8 {[%emt 0:00:26]} h4 {[%emt 0:00:51]} 58. Ke6 {[%emt 0:01:29]} h3 {[%emt 0:00:27]} 59. Rh7+ {[%emt 0:00:20]} Kb6 {[%emt 0:00:04]} 60. Kd7 {[%emt 0:00:04]} Rd1+ {[%emt 0:02:50]} 61. Kc8 {[%emt 0:00:06]} Rd3 {[%emt 0:00:03]} 62. Rb7+ {[%emt 0:01:37]} Ka5 {[%emt 0:00:04]} 63. Rh7 {[%emt 0:01:19]} Kb4 {[%emt 0:01:25]} 64. Kc7 {[%emt 0:00:06]} Kxb3 {[%emt 0:00:39]} 65. Rh4 {[%emt 0:00:26]} Rd4 {[%emt 0:00:54]} 66. Rxh3+ {[%emt 0:00:06]} Kxc4 {[%emt 0:00:02]} 67. Kxc6 {[%emt 0:00:05]} Rg4 {[%emt 0:00:30]} 68. Kd6 {[%emt 0:01:48]} Kb4 {[%emt 0:01:38]} 69. Rh1 {[%emt 0:00:24]} c4 {[%emt 0:00:21]} 70. Kd5 {[%emt 0:00:03]} Rg3 {[%emt 0:00:14]} 71. Rb1+ {[%emt 0:00:19]} Rb3 {[%emt 0:00:06]} 72. Rh1 {[%emt 0:00:11]} Rd3+ {[%emt 0:00:06]} 73. Ke4 {[%emt 0:00:18]} Rd2 {[%emt 0:00:10]} 74. Rb1+ {[%emt 0:00:24]} Ka3 {[%emt 0:00:06]} 75. Ke3 {[%emt 0:00:16]} c3 {[%emt 0:00:15]} 76. Rb8 {[%emt 0:00:14]} Rd1 {[%emt 0:00:30]} 77. Rc8 {[%emt 0:00:18]} Kb2 {[%emt 0:00:05]} 78. Ke2 {[%emt 0:00:14]} c2 {[%emt 0:00:12]} 79. Rb8+ {[%emt 0:00:01]} Ka3 {[%emt 0:00:04]} 80. Ra8+ {[%emt 0:00:07]} Kb4 {[%emt 0:00:03]} 0-1